[Event "European Women's Chess Championship (49-84)"]
[Site "Batumi, Georgia"]
[Date "2026.05.25"]
[Round "1.70"]
[White "Saltkhutsishvili, Sara"]
[Black "Sieber, Fiona"]
[Result "0-1"]
[TimeControl "90min /40moves + 30min + 30-sec increment from move 1"]
[WhiteTitle "-"]
[BlackTitle "-"]
[WhiteFideId "13636995"]
[BlackFideId "12902373"]
[WhiteElo "1763"]
[BlackElo "2224"]

1. e4 {[%clk 01:30:56]} {[%emt 00:00:04]} c5 {[%clk 01:30:52]} {[%emt
00:00:08]} 2. Nf3 {[%clk 01:31:24]} {[%emt 00:00:02]} d6 {[%clk 01:31:17]}
{[%emt 00:00:05]} 3. d4 {[%clk 01:31:48]} {[%emt 00:00:06]} cxd4 {[%clk
01:31:42]} {[%emt 00:00:04]} 4. Nxd4 {[%clk 01:32:14]} {[%emt 00:00:05]} Nf6
{[%clk 01:32:08]} {[%emt 00:00:05]} 5. Nc3 {[%clk 01:32:38]} {[%emt 00:00:05]}
a6 {[%clk 01:32:34]} {[%emt 00:00:04]} 6. h3 {[%clk 01:33:01]} {[%emt
00:00:07]} b5 {[%clk 01:32:59]} {[%emt 00:00:05]} 7. Bd3 {[%clk 01:28:04]}
{[%emt 00:05:27]} Bb7 {[%clk 01:32:46]} {[%emt 00:00:43]} 8. Qe2 {[%clk
01:26:25]} {[%emt 00:02:09]} e6 {[%clk 01:32:38]} {[%emt 00:00:37]} 9. O-O
{[%clk 01:25:39]} {[%emt 00:01:16]} Be7 {[%clk 01:32:51]} {[%emt 00:00:18]} 10.
a4 {[%clk 01:21:47]} {[%emt 00:04:22]} b4 {[%clk 01:25:29]} {[%emt 00:07:51]}
11. Na2 {[%clk 01:21:28]} {[%emt 00:00:50]} O-O {[%clk 01:24:46]} {[%emt
00:01:13]} 12. Bg5 {[%clk 01:10:24]} {[%emt 00:11:34]} Qb6 {[%clk 01:16:38]}
{[%emt 00:08:38]} 13. Nb3 {[%clk 01:05:07]} {[%emt 00:05:47]} a5 {[%clk
01:12:46]} {[%emt 00:04:22]} 14. Nd2 {[%clk 00:58:10]} {[%emt 00:07:27]} Nbd7
{[%clk 01:11:28]} {[%emt 00:01:48]} 15. Be3 {[%clk 00:44:17]} {[%emt 00:14:23]}
Qc7 {[%clk 01:10:04]} {[%emt 00:01:54]} 16. c3 {[%clk 00:41:18]} {[%emt
00:03:29]} d5 {[%clk 01:06:28]} {[%emt 00:04:06]} 17. Bg5 {[%clk 00:35:39]}
{[%emt 00:06:09]} Rfd8 {[%clk 00:51:45]} {[%emt 00:15:13]} 18. exd5 {[%clk
00:27:32]} {[%emt 00:08:37]} Bxd5 {[%clk 00:51:50]} {[%emt 00:00:25]} 19. Ne4
{[%clk 00:22:51]} {[%emt 00:05:11]} Qb7 {[%clk 00:43:42]} {[%emt 00:08:39]} 20.
Nxf6+ {[%clk 00:21:39]} {[%emt 00:01:42]} Nxf6 {[%clk 00:42:56]} {[%emt
00:01:15]} 21. f3 {[%clk 00:16:43]} {[%emt 00:05:25]} Nh5 {[%clk 00:41:41]}
{[%emt 00:01:45]} 22. Bxe7 {[%clk 00:16:24]} {[%emt 00:00:50]} Qxe7 {[%clk
00:41:29]} {[%emt 00:00:42]} 23. Rfd1 {[%clk 00:14:40]} {[%emt 00:02:14]} Qg5
{[%clk 00:35:58]} {[%emt 00:06:01]} 24. c4 {[%clk 00:11:00]} {[%emt 00:04:11]}
Nf4 {[%clk 00:33:45]} {[%emt 00:02:42]} 25. Qf1 {[%clk 00:09:29]} {[%emt
00:02:01]} Bc6 {[%clk 00:33:11]} {[%emt 00:01:04]} 26. Nc1 {[%clk 00:07:21]}
{[%emt 00:02:37]} Nxh3+ {[%clk 00:32:01]} {[%emt 00:01:41]} 27. Kh1 {[%clk
00:06:18]} {[%emt 00:01:33]} Qh5 {[%clk 00:28:05]} {[%emt 00:04:26]} 28. Rd2
{[%clk 00:03:34]} {[%emt 00:03:15]} Ng5+ {[%clk 00:26:55]} {[%emt 00:01:39]} 29.
Kg1 {[%clk 00:03:46]} {[%emt 00:00:17]} Bxf3 {[%clk 00:25:08]} {[%emt
00:02:18]} 30. Rf2 {[%clk 00:02:17]} {[%emt 00:01:58]} Bc6 {[%clk 00:23:20]}
{[%emt 00:02:18]} 31. Ne2 {[%clk 00:00:35]} {[%emt 00:02:13]} Nh3+ {[%clk
00:20:52]} {[%emt 00:02:58]} 32. gxh3 {[%clk 00:00:36]} {[%emt 00:00:28]} Rxd3
{[%clk 00:21:17]} {[%emt 00:00:06]} 33. Nf4 {[%clk 00:00:33]} {[%emt 00:00:33]}
Qg5+ {[%clk 00:20:27]} {[%emt 00:01:20]} 34. Rg2 {[%clk 00:00:32]} {[%emt
00:00:31]} Bxg2 {[%clk 00:20:33]} {[%emt 00:00:23]} 35. Nxg2 {[%clk 00:00:36]}
{[%emt 00:00:27]} Rad8 {[%clk 00:20:53]} {[%emt 00:00:10]} 36. h4 {[%clk
00:00:36]} {[%emt 00:00:32]} Qc5+ {[%clk 00:19:19]} {[%emt 00:02:03]} 37. Kh2
{[%clk 00:00:50]} {[%emt 00:00:13]} Qxc4 {[%clk 00:19:00]} {[%emt 00:00:51]} 38.
Rc1 {[%clk 00:00:44]} {[%emt 00:00:36]} Qd4 {[%clk 00:19:10]} {[%emt 00:00:20]}
39. Qf4 {[%clk 00:00:31]} {[%emt 00:00:43]} Qxf4+ {[%clk 00:19:13]} {[%emt
00:00:27]} 0-1

[Event "European Women's Chess Championship (49-84)"]
[Site "Batumi, Georgia"]
[Date "2026.05.25"]
[Round "1.71"]
[White "Mamedjarova, Turkan"]
[Black "Kalayci, Nino"]
[Result "1-0"]
[TimeControl "90min /40moves + 30min + 30-sec increment from move 1"]
[WhiteTitle "-"]
[BlackTitle "-"]
[WhiteFideId "13402005"]
[BlackFideId "13603221"]
[WhiteElo "2222"]
[BlackElo "1755"]

1. d4 {[%clk 01:30:55]} {[%emt 00:00:04]} d5 {[%clk 01:30:37]} {[%emt
00:00:24]} 2. Nf3 {[%clk 01:31:02]} {[%emt 00:00:23]} Nf6 {[%clk 01:30:29]}
{[%emt 00:00:38]} 3. c4 {[%clk 01:31:08]} {[%emt 00:00:24]} e6 {[%clk
01:29:41]} {[%emt 00:01:18]} 4. e3 {[%clk 01:31:22]} {[%emt 00:00:16]} c6
{[%clk 01:27:18]} {[%emt 00:02:53]} 5. Nc3 {[%clk 01:31:16]} {[%emt 00:00:36]}
dxc4 {[%clk 01:23:55]} {[%emt 00:03:53]} 6. Bxc4 {[%clk 01:30:41]} {[%emt
00:01:05]} b5 {[%clk 01:24:06]} {[%emt 00:00:20]} 7. Bd3 {[%clk 01:27:42]}
{[%emt 00:03:28]} a6 {[%clk 01:21:21]} {[%emt 00:03:16]} 8. O-O {[%clk
01:26:07]} {[%emt 00:02:04]} Be7 {[%clk 01:18:44]} {[%emt 00:03:06]} 9. e4
{[%clk 01:16:56]} {[%emt 00:09:42]} Bb7 {[%clk 01:13:55]} {[%emt 00:05:19]} 10.
e5 {[%clk 01:12:02]} {[%emt 00:05:25]} Nd5 {[%clk 01:07:31]} {[%emt 00:06:54]}
11. Nxd5 {[%clk 01:07:55]} {[%emt 00:04:37]} Qxd5 {[%clk 00:58:12]} {[%emt
00:09:48]} 12. Bg5 {[%clk 01:00:00]} {[%emt 00:08:25]} Bxg5 {[%clk 00:23:47]}
{[%emt 00:34:55]} 13. Nxg5 {[%clk 01:00:27]} {[%emt 00:00:02]} f5 {[%clk
00:20:10]} {[%emt 00:04:07]} 14. Qh5+ {[%emt 00:10:38]} g6 {[%clk 00:20:08]}
{[%emt 00:00:29]} 15. Qh3 {[%clk 00:50:42]} {[%emt 00:00:10]} Nd7 {[%clk
00:07:35]} {[%emt 00:13:04]} 16. a4 {[%clk 00:40:16]} {[%emt 00:10:57]} h6
{[%clk 00:02:44]} {[%emt 00:05:20]} 17. Bc2 {[%clk 00:35:04]} {[%emt 00:05:43]}
c5 {[%clk 00:01:50]} {[%emt 00:01:24]} 18. dxc5 {[%clk 00:34:24]} {[%emt
00:01:10]} Qxg2+ {[%clk 00:00:56]} {[%emt 00:01:23]} 19. Qxg2 {[%clk 00:34:52]}
{[%emt 00:00:01]} Bxg2 {[%clk 00:01:20]} {[%emt 00:00:06]} 20. Kxg2 {[%clk
00:31:22]} {[%emt 00:04:01]} hxg5 {[%clk 00:01:44]} {[%emt 00:00:05]} 21. axb5
{[%clk 00:26:21]} {[%emt 00:05:33]} Nxc5 {[%clk 00:00:59]} {[%emt 00:01:15]} 22.
b4 {[%clk 00:26:23]} {[%emt 00:00:27]} Nd7 {[%clk 00:01:04]} {[%emt 00:00:25]}
23. bxa6 {[%clk 00:25:40]} {[%emt 00:01:13]} Ke7 {[%clk 00:00:51]} {[%emt
00:00:43]} 24. b5 {[%clk 00:24:22]} {[%emt 00:01:49]} Rhc8 {[%clk 00:00:35]}
{[%emt 00:00:45]} 25. Bd3 {[%clk 00:23:02]} {[%emt 00:01:51]} Nb6 {[%clk
00:00:33]} {[%emt 00:00:32]} 26. Rfc1 {[%clk 00:21:58]} {[%emt 00:01:34]} Nd5
{[%clk 00:00:38]} {[%emt 00:00:25]} 27. Bf1 {[%clk 00:21:23]} {[%emt 00:01:04]}
Nf4+ {[%clk 00:00:31]} {[%emt 00:00:37]} 28. Kg1 {[%clk 00:21:29]} {[%emt
00:00:25]} Nd5 {[%clk 00:00:34]} {[%emt 00:00:27]} 29. Bg2 {[%clk 00:21:15]}
{[%emt 00:00:43]} Rcb8 {[%clk 00:00:33]} {[%emt 00:00:32]} 30. Rc5 {[%clk
00:20:08]} {[%emt 00:01:37]} Rb6 {[%clk 00:00:31]} {[%emt 00:00:31]} 31. Bxd5
{[%clk 00:19:55]} {[%emt 00:00:43]} exd5 {[%clk 00:01:00]} {[%emt 00:00:01]} 32.
Rd1 {[%clk 00:18:41]} {[%emt 00:01:44]} 1-0

[Event "European Women's Chess Championship (49-84)"]
[Site "Batumi, Georgia"]
[Date "2026.05.25"]
[Round "1.72"]
[White "Saraci, Rinesa"]
[Black "Rodshtein, Tereza"]
[Result "0-1"]
[TimeControl "90min /40moves + 30min + 30-sec increment from move 1"]
[WhiteTitle "-"]
[BlackTitle "-"]
[WhiteFideId "4701976"]
[BlackFideId "325449"]
[WhiteElo "1754"]
[BlackElo "2218"]

1. e4 {[%clk 01:30:55]} {[%emt 00:00:04]} e5 {[%clk 01:30:50]} {[%emt
00:00:11]} 2. Nf3 {[%clk 01:31:15]} {[%emt 00:00:10]} Nc6 {[%clk 01:31:12]}
{[%emt 00:00:07]} 3. Bc4 {[%clk 01:30:47]} {[%emt 00:00:58]} Nf6 {[%clk
01:31:31]} {[%emt 00:00:11]} 4. Nc3 {[%clk 01:30:37]} {[%emt 00:00:40]} Nxe4
{[%clk 01:31:00]} {[%emt 00:01:02]} 5. Bxf7+ {[%clk 01:29:55]} {[%emt
00:01:12]} Kxf7 {[%clk 01:31:20]} {[%emt 00:00:09]} 6. Nxe4 {[%clk 01:28:02]}
{[%emt 00:02:24]} d5 {[%clk 01:31:30]} {[%emt 00:00:20]} 7. Neg5+ {[%clk
01:18:59]} {[%emt 00:09:33]} Kg8 {[%clk 01:30:08]} {[%emt 00:01:51]} 8. c3
{[%clk 01:10:21]} {[%emt 00:09:09]} h6 {[%clk 01:23:03]} {[%emt 00:07:35]} 9.
Nh3 {[%clk 00:54:57]} {[%emt 00:15:54]} e4 {[%clk 01:22:25]} {[%emt 00:01:07]}
10. Nfg1 {[%clk 00:51:45]} {[%emt 00:03:43]} Ne5 {[%clk 01:19:43]} {[%emt
00:03:11]} 11. d4 {[%clk 00:38:50]} {[%emt 00:13:25]} Nd3+ {[%clk 01:17:32]}
{[%emt 00:02:42]} 12. Kf1 {[%clk 00:35:55]} {[%emt 00:03:25]} Qf6 {[%clk
01:13:42]} {[%emt 00:04:19]} 13. Be3 {[%clk 00:32:14]} {[%emt 00:04:12]} Nxb2
{[%clk 01:10:56]} {[%emt 00:03:16]} 14. Qb3 {[%clk 00:27:44]} {[%emt 00:04:59]}
Nc4 {[%clk 01:10:07]} {[%emt 00:01:20]} 15. Ke1 {[%clk 00:24:13]} {[%emt
00:04:00]} Bd6 {[%clk 01:07:53]} {[%emt 00:02:45]} 16. Qd1 {[%clk 00:13:54]}
{[%emt 00:10:49]} a5 {[%clk 01:04:17]} {[%emt 00:04:06]} 17. Rb1 {[%clk
00:10:38]} {[%emt 00:03:46]} b6 {[%clk 01:02:56]} {[%emt 00:01:51]} 18. Qa4
{[%clk 00:07:13]} {[%emt 00:03:55]} Kh7 {[%clk 01:00:28]} {[%emt 00:02:57]} 19.
Qd1 {[%clk 00:05:34]} {[%emt 00:02:09]} Rf8 {[%clk 00:59:50]} {[%emt 00:01:09]}
20. Qe2 {[%clk 00:03:46]} {[%emt 00:02:18]} Ba6 {[%clk 00:58:29]} {[%emt
00:01:51]} 21. Rc1 {[%clk 00:01:30]} {[%emt 00:02:46]} Ba3 {[%clk 00:57:13]}
{[%emt 00:01:46]} 22. Rc2 {[%clk 00:00:49]} {[%emt 00:01:11]} Nb2 {[%clk
00:56:15]} {[%emt 00:01:28]} 23. Qh5 {[%clk 00:00:40]} {[%emt 00:00:39]} Bd3
{[%clk 00:51:54]} {[%emt 00:04:50]} 24. Rd2 {[%clk 00:00:39]} {[%emt 00:00:32]}
Nc4 {[%clk 00:51:59]} {[%emt 00:00:25]} 25. Rxd3 {[%clk 00:00:32]} {[%emt
00:00:37]} exd3 {[%clk 00:52:09]} {[%emt 00:00:19]} 26. Nf3 {[%clk 00:00:35]}
{[%emt 00:00:28]} Rae8 {[%clk 00:40:06]} {[%emt 00:12:33]} 27. Qxd5 {[%clk
00:00:31]} {[%emt 00:00:34]} Nxe3 {[%clk 00:39:41]} {[%emt 00:00:54]} 28. fxe3
{[%clk 00:00:52]} {[%emt 00:00:10]} Rxe3+ {[%clk 00:40:06]} {[%emt 00:00:05]}
29. Kd2 {[%clk 00:00:46]} {[%emt 00:00:35]} Re2+ {[%clk 00:36:19]} {[%emt
00:04:18]} 30. Kxd3 {[%clk 00:00:40]} {[%emt 00:00:36]} Rxg2 {[%clk 00:36:43]}
{[%emt 00:00:06]} 31. Rf1 {[%clk 00:00:31]} {[%emt 00:00:39]} Qg6+ {[%clk
00:35:04]} {[%emt 00:02:09]} 32. Kc4 {[%clk 00:00:44]} {[%emt 00:00:17]} b5+
{[%clk 00:34:51]} {[%emt 00:00:43]} 33. Qxb5 {[%clk 00:00:40]} {[%emt
00:00:33]} Qe6+ {[%clk 00:35:01]} {[%emt 00:00:20]} 34. Qd5 {[%clk 00:00:33]}
{[%emt 00:00:38]} Qe2+ {[%clk 00:35:18]} {[%emt 00:00:12]} 35. Kb3 {[%clk
00:00:32]} {[%emt 00:00:32]} Qxa2+ {[%clk 00:33:43]} {[%emt 00:02:05]} 0-1

[Event "European Women's Chess Championship (49-84)"]
[Site "Batumi, Georgia"]
[Date "2026.05.25"]
[Round "1.73"]
[White "Danielyan, Lilia"]
[Black "Tirpan, Ceren"]
[Result "0-1"]
[TimeControl "90min /40moves + 30min + 30-sec increment from move 1"]
[WhiteTitle "-"]
[BlackTitle "-"]
[WhiteFideId "13319841"]
[BlackFideId "26385309"]
[WhiteElo "1728"]
[BlackElo "2209"]

1. d4 {[%clk 01:30:55]} {[%emt 00:00:05]} Nf6 {[%clk 01:30:54]} {[%emt
00:00:06]} 2. c4 {[%clk 01:31:15]} {[%emt 00:00:09]} d6 {[%clk 01:30:22]}
{[%emt 00:01:03]} 3. Nc3 {[%clk 01:31:26]} {[%emt 00:00:18]} e5 {[%clk
01:30:41]} {[%emt 00:00:11]} 4. d5 {[%clk 01:30:58]} {[%emt 00:00:59]} e4
{[%clk 01:30:15]} {[%emt 00:00:55]} 5. g3 {[%clk 01:29:52]} {[%emt 00:01:35]}
Bf5 {[%clk 01:24:09]} {[%emt 00:06:36]} 6. Bg2 {[%clk 01:27:26]} {[%emt
00:02:55]} Be7 {[%clk 01:16:35]} {[%emt 00:08:05]} 7. Nh3 {[%clk 01:20:40]}
{[%emt 00:07:17]} h6 {[%clk 01:15:47]} {[%emt 00:01:17]} 8. f3 {[%clk
01:17:35]} {[%emt 00:03:34]} O-O {[%clk 01:03:21]} {[%emt 00:12:57]} 9. fxe4
{[%clk 01:08:54]} {[%emt 00:09:12]} Bxh3 {[%clk 01:03:35]} {[%emt 00:00:15]} 10.
Bxh3 {[%clk 01:09:13]} {[%emt 00:00:11]} Nfd7 {[%clk 01:02:31]} {[%emt
00:01:34]} 11. O-O {[%clk 00:59:02]} {[%emt 00:10:42]} Bf6 {[%clk 01:00:37]}
{[%emt 00:02:23]} 12. Be3 {[%clk 00:50:59]} {[%emt 00:08:32]} Bxc3 {[%clk
00:52:07]} {[%emt 00:09:02]} 13. bxc3 {[%clk 00:51:20]} {[%emt 00:00:09]} Qe7
{[%clk 00:52:34]} {[%emt 00:00:03]} 14. Qd2 {[%clk 00:45:05]} {[%emt 00:06:44]}
Nc5 {[%clk 00:36:26]} {[%emt 00:16:39]} 15. Rf4 {[%clk 00:30:33]} {[%emt
00:15:00]} Nxe4 {[%clk 00:26:03]} {[%emt 00:10:54]} 16. Rxe4 {[%clk 00:23:08]}
{[%emt 00:07:57]} Qxe4 {[%clk 00:26:16]} {[%emt 00:00:16]} 17. Rf1 {[%clk
00:23:05]} {[%emt 00:00:32]} Re8 {[%clk 00:18:19]} {[%emt 00:08:27]} 18. Bd4
{[%clk 00:16:45]} {[%emt 00:06:50]} c5 {[%clk 00:15:15]} {[%emt 00:03:35]} 19.
Bf2 {[%clk 00:10:12]} {[%emt 00:07:02]} Re7 {[%clk 00:13:47]} {[%emt 00:01:58]}
20. Bg2 {[%clk 00:08:20]} {[%emt 00:02:22]} Qxc4 {[%clk 00:14:03]} {[%emt
00:00:15]} 21. Be3 {[%clk 00:06:15]} {[%emt 00:02:35]} Qg4 {[%clk 00:08:43]}
{[%emt 00:05:50]} 22. Rf4 {[%clk 00:03:59]} {[%emt 00:02:46]} Qg6 {[%clk
00:08:56]} {[%emt 00:00:17]} 23. Bh3 {[%clk 00:03:43]} {[%emt 00:00:46]} Qb1+
{[%clk 00:04:27]} {[%emt 00:05:00]} 24. Rf1 {[%clk 00:01:57]} {[%emt 00:02:17]}
Qe4 {[%clk 00:04:42]} {[%emt 00:00:14]} 25. Rf3 {[%clk 00:01:32]} {[%emt
00:00:55]} Re5 {[%clk 00:04:33]} {[%emt 00:00:39]} 26. Kf2 {[%clk 00:00:51]}
{[%emt 00:01:12]} Rxd5 {[%clk 00:03:54]} {[%emt 00:01:07]} 27. Qb2 {[%clk
00:01:03]} {[%emt 00:00:18]} Rh5 {[%clk 00:03:29]} {[%emt 00:00:54]} 28. Rf4
{[%clk 00:01:05]} {[%emt 00:00:30]} Qe7 {[%clk 00:03:50]} {[%emt 00:00:09]} 29.
Bg2 {[%clk 00:01:14]} {[%emt 00:00:21]} Nc6 {[%clk 00:04:08]} {[%emt 00:00:12]}
30. h3 {[%clk 00:00:44]} {[%emt 00:01:00]} Re8 {[%clk 00:04:30]} {[%emt
00:00:08]} 31. Re4 {[%clk 00:00:54]} {[%emt 00:00:19]} Re5 {[%clk 00:04:54]}
{[%emt 00:00:06]} 32. Rxe5 {[%clk 00:00:40]} {[%emt 00:00:45]} Nxe5 {[%clk
00:05:08]} {[%emt 00:00:16]} 33. Bf4 {[%clk 00:00:32]} {[%emt 00:00:37]} Nc4
{[%clk 00:03:45]} {[%emt 00:01:53]} 34. Qc2 {[%clk 00:00:37]} {[%emt 00:00:25]}
Ne3 {[%clk 00:04:08]} {[%emt 00:00:07]} 35. Bxe3 {[%clk 00:00:37]} {[%emt
00:00:32]} Qxe3+ {[%clk 00:04:31]} {[%emt 00:00:06]} 36. Kf1 {[%clk 00:00:55]}
{[%emt 00:00:11]} Qxg3 {[%clk 00:04:55]} {[%emt 00:00:06]} 37. Bxb7 {[%clk
00:01:10]} {[%emt 00:00:16]} Re6 {[%clk 00:05:06]} {[%emt 00:00:18]} 38. Bf3
{[%clk 00:01:15]} {[%emt 00:00:25]} Qxh3+ {[%clk 00:05:26]} {[%emt 00:00:10]}
39. Kf2 {[%clk 00:01:20]} {[%emt 00:00:25]} Qh2+ {[%clk 00:05:41]} {[%emt
00:00:15]} 40. Ke1 {[%clk 00:01:40]} {[%emt 00:00:10]} Qg1+ {[%clk 00:05:43]}
{[%emt 00:00:28]} 41. Kd2 {[%clk 00:01:51]} {[%emt 00:00:19]} Qe3+ {[%clk
00:06:07]} {[%emt 00:00:06]} 42. Kd1 {[%clk 00:01:53]} {[%emt 00:00:28]} Rg6
{[%clk 00:06:30]} {[%emt 00:00:08]} 0-1

[Event "European Women's Chess Championship (49-84)"]
[Site "Batumi, Georgia"]
[Date "2026.05.25"]
[Round "1.74"]
[White "Bashylina, Luisa"]
[Black "Manukyan, Tamara"]
[Result "1-0"]
[TimeControl "90min /40moves + 30min + 30-sec increment from move 1"]
[WhiteTitle "-"]
[BlackTitle "-"]
[WhiteFideId "12983292"]
[BlackFideId "13321307"]
[WhiteElo "2208"]
[BlackElo "1707"]

1. d4 {[%clk 01:30:56]} {[%emt 00:00:03]} e6 {[%clk 01:30:51]} {[%emt
00:00:09]} 2. c4 {[%clk 01:31:21]} {[%emt 00:00:05]} b6 {[%clk 01:31:19]}
{[%emt 00:00:03]} 3. Nc3 {[%clk 01:28:50]} {[%emt 00:03:01]} Bb4 {[%clk
01:31:43]} {[%emt 00:00:05]} 4. e4 {[%clk 01:29:06]} {[%emt 00:00:14]} Bb7
{[%clk 01:32:10]} {[%emt 00:00:04]} 5. f3 {[%clk 01:29:20]} {[%emt 00:00:15]}
f5 {[%clk 01:29:56]} {[%emt 00:02:45]} 6. exf5 {[%clk 01:29:31]} {[%emt
00:00:19]} exf5 {[%clk 01:30:22]} {[%emt 00:00:04]} 7. Nh3 {[%clk 01:23:10]}
{[%emt 00:06:50]} Qh4+ {[%clk 01:25:03]} {[%emt 00:05:49]} 8. g3 {[%clk
01:10:08]} {[%emt 00:13:32]} Qe7+ {[%clk 01:13:15]} {[%emt 00:12:19]} 9. Kf2
{[%clk 01:10:25]} {[%emt 00:00:13]} Nf6 {[%clk 01:06:16]} {[%emt 00:07:29]} 10.
Bd3 {[%clk 01:09:16]} {[%emt 00:01:38]} O-O {[%clk 01:04:25]} {[%emt 00:02:22]}
11. Nb5 {[%clk 00:59:29]} {[%emt 00:10:17]} Na6 {[%clk 00:38:48]} {[%emt
00:26:07]} 12. a3 {[%clk 00:57:56]} {[%emt 00:02:04]} c6 {[%clk 00:38:15]}
{[%emt 00:01:02]} 13. Nc3 {[%clk 00:55:33]} {[%emt 00:02:53]} Bxc3 {[%clk
00:38:06]} {[%emt 00:00:40]} 14. bxc3 {[%clk 00:55:57]} {[%emt 00:00:05]} Rae8
{[%clk 00:33:39]} {[%emt 00:04:57]} 15. a4 {[%clk 00:49:02]} {[%emt 00:07:25]}
Ne4+ {[%clk 00:31:46]} {[%emt 00:02:23]} 16. Kg2 {[%clk 00:42:44]} {[%emt
00:06:47]} Nxc3 {[%clk 00:24:38]} {[%emt 00:07:38]} 17. Qd2 {[%clk 00:39:32]}
{[%emt 00:03:42]} Ne4 {[%clk 00:21:01]} {[%emt 00:04:07]} 18. fxe4 {[%clk
00:39:44]} {[%emt 00:00:19]} fxe4 {[%clk 00:21:28]} {[%emt 00:00:03]} 19. Bb1
{[%clk 00:28:10]} {[%emt 00:12:03]} c5 {[%clk 00:13:13]} {[%emt 00:08:46]} 20.
d5 {[%clk 00:27:09]} {[%emt 00:01:31]} Nb4 {[%clk 00:13:13]} {[%emt 00:00:30]}
21. Re1 {[%clk 00:19:55]} {[%emt 00:07:43]} e3 {[%clk 00:12:04]} {[%emt
00:01:40]} 22. Qe2 {[%clk 00:17:16]} {[%emt 00:03:09]} Nxd5 {[%clk 00:09:31]}
{[%emt 00:03:05]} 23. cxd5 {[%clk 00:15:33]} {[%emt 00:02:13]} Qe5 {[%clk
00:09:44]} {[%emt 00:00:17]} 24. Qd3 {[%clk 00:15:19]} {[%emt 00:00:43]} Qxa1
{[%clk 00:05:50]} {[%emt 00:04:24]} 25. Qxh7+ {[%clk 00:15:35]} {[%emt
00:00:13]} Kf7 {[%clk 00:06:17]} {[%emt 00:00:04]} 26. Qg6+ {[%clk 00:13:39]}
{[%emt 00:02:25]} Ke7 {[%clk 00:06:24]} {[%emt 00:00:24]} 27. Rxe3+ {[%clk
00:13:37]} {[%emt 00:00:31]} Kd8 {[%clk 00:06:48]} {[%emt 00:00:05]} 28. Rxe8+
{[%clk 00:13:51]} {[%emt 00:00:17]} Rxe8 {[%clk 00:07:12]} {[%emt 00:00:06]} 29.
Bg5+ {[%clk 00:14:17]} {[%emt 00:00:04]} Kc7 {[%clk 00:07:04]} {[%emt
00:00:38]} 30. Qxe8 {[%clk 00:13:28]} {[%emt 00:01:20]} Qb2+ {[%clk 00:06:57]}
{[%emt 00:00:37]} 31. Nf2 {[%clk 00:13:38]} {[%emt 00:00:19]} Bxd5+ {[%clk
00:07:06]} {[%emt 00:00:22]} 32. Be4 {[%clk 00:13:56]} {[%emt 00:00:12]} Bc6
{[%clk 00:05:51]} {[%emt 00:01:45]} 33. Bf4+ {[%clk 00:14:17]} {[%emt
00:00:09]} 1-0

[Event "European Women's Chess Championship (49-84)"]
[Site "Batumi, Georgia"]
[Date "2026.05.25"]
[Round "1.75"]
[White "Kedelidze, Aneta"]
[Black "Hnatyshyn, Anastasiia"]
[Result "0-1"]
[TimeControl "90min /40moves + 30min + 30-sec increment from move 1"]
[WhiteTitle "-"]
[BlackTitle "-"]
[WhiteFideId "13626191"]
[BlackFideId "14198339"]
[WhiteElo "1676"]
[BlackElo "2207"]

1. d4 {[%clk 01:30:57]} {[%emt 00:00:02]} d5 {[%clk 01:30:55]} {[%emt
00:00:06]} 2. c4 {[%clk 01:31:23]} {[%emt 00:00:05]} e6 {[%clk 01:31:21]}
{[%emt 00:00:03]} 3. Nf3 {[%clk 01:31:48]} {[%emt 00:00:04]} Nf6 {[%clk
01:31:46]} {[%emt 00:00:06]} 4. Nc3 {[%clk 01:32:12]} {[%emt 00:00:06]} Nbd7
{[%clk 01:32:00]} {[%emt 00:00:16]} 5. Bf4 {[%clk 01:30:30]} {[%emt 00:02:13]}
dxc4 {[%clk 01:31:43]} {[%emt 00:00:46]} 6. e3 {[%clk 01:30:29]} {[%emt
00:00:30]} Bd6 {[%clk 01:31:54]} {[%emt 00:00:19]} 7. Bxd6 {[%clk 01:27:56]}
{[%emt 00:03:04]} cxd6 {[%clk 01:32:18]} {[%emt 00:00:07]} 8. Bxc4 {[%clk
01:28:17]} {[%emt 00:00:08]} O-O {[%clk 01:31:34]} {[%emt 00:01:13]} 9. O-O
{[%clk 01:28:40]} {[%emt 00:00:07]} b6 {[%clk 01:27:40]} {[%emt 00:04:25]} 10.
Rc1 {[%clk 01:24:45]} {[%emt 00:04:25]} Bb7 {[%clk 01:25:34]} {[%emt 00:02:36]}
11. Bd3 {[%clk 01:22:57]} {[%emt 00:02:18]} e5 {[%clk 01:18:14]} {[%emt
00:07:50]} 12. dxe5 {[%clk 01:15:17]} {[%emt 00:08:10]} dxe5 {[%clk 01:17:47]}
{[%emt 00:00:56]} 13. Bb1 {[%clk 01:14:10]} {[%emt 00:01:38]} Rc8 {[%clk
01:09:26]} {[%emt 00:08:52]} 14. Qe2 {[%clk 01:11:15]} {[%emt 00:03:25]} Qe7
{[%clk 01:08:15]} {[%emt 00:01:40]} 15. Rfd1 {[%clk 01:09:41]} {[%emt
00:02:06]} Rfd8 {[%clk 01:02:20]} {[%emt 00:06:26]} 16. h3 {[%clk 00:54:29]}
{[%emt 00:15:41]} Nc5 {[%clk 00:50:54]} {[%emt 00:11:56]} 17. Rxd8+ {[%clk
00:48:29]} {[%emt 00:06:30]} Rxd8 {[%clk 00:51:19]} {[%emt 00:00:05]} 18. Rd1
{[%clk 00:47:52]} {[%emt 00:01:07]} Re8 {[%clk 00:49:15]} {[%emt 00:02:34]} 19.
b4 {[%clk 00:34:49]} {[%emt 00:13:33]} Nce4 {[%clk 00:43:19]} {[%emt 00:06:27]}
20. Nxe4 {[%clk 00:34:42]} {[%emt 00:00:37]} Nxe4 {[%clk 00:43:44]} {[%emt
00:00:05]} 21. Qd3 {[%clk 00:33:35]} {[%emt 00:01:37]} g6 {[%clk 00:38:03]}
{[%emt 00:06:11]} 22. a3 {[%clk 00:18:38]} {[%emt 00:15:28]} Kg7 {[%clk
00:29:24]} {[%emt 00:09:09]} 23. Rc1 {[%clk 00:14:20]} {[%emt 00:04:47]} Rd8
{[%clk 00:24:30]} {[%emt 00:05:24]} 24. Qb5 {[%clk 00:13:26]} {[%emt 00:01:25]}
Nc3 {[%clk 00:19:00]} {[%emt 00:05:59]} 25. Qc4 {[%clk 00:01:51]} {[%emt
00:12:06]} Rc8 {[%clk 00:18:29]} {[%emt 00:01:01]} 26. Qd3 {[%clk 00:00:42]}
{[%emt 00:01:39]} Ne2+ {[%clk 00:18:07]} {[%emt 00:00:52]} 0-1